[Event "Titled Tuesday Blitz August 15 Early 2023"]
[White "Rangel, Daniel"]
[Black "Sydoryka, Vladyslav"]
[WhiteFideId "2124475"]
[BlackFideId "14145928"]
[WhiteElo "2451"]
[BlackElo "2611"]
[Result "0-1"]
[Round "5"]
[TimeControl "180+1"]
[Date "2023.08.15"]
[WhiteClock "0:00:01"]
[BlackClock "0:00:08"]
[Board "90"]

1. d4 {[%clk 0:02:58]}  Nf6 {[%clk 0:02:59]} 2. c4 {[%clk 0:02:57]}  e6 {[%clk 0:02:59]} 3. Nc3 {[%clk 0:02:56]}  Bb4 {[%clk 0:02:59]} 4. Bd2 {[%clk 0:02:54]}  O-O {[%clk 0:02:58]} 5. e3 {[%clk 0:02:55]}  Re8 {[%clk 0:02:56]} 6. Bd3 {[%clk 0:02:53]}  d5 {[%clk 0:02:55]} 7. Nf3 {[%clk 0:02:23]}  b6 {[%clk 0:02:55]} 8. O-O {[%clk 0:02:22]}  Bb7 {[%clk 0:02:55]} 9. cxd5 {[%clk 0:02:21]}  exd5 {[%clk 0:02:56]} 10. Qc2 {[%clk 0:02:18]}  c5 {[%clk 0:02:55]} 11. a3 {[%clk 0:02:17]}  Bxc3 {[%clk 0:02:54]} 12. Bxc3 {[%clk 0:02:15]}  c4 {[%clk 0:02:52]} 13. Bf5 {[%clk 0:02:13]}  Nc6 {[%clk 0:02:49]} 14. Ne5 {[%clk 0:02:12]}  Ne7 {[%clk 0:02:47]} 15. Bh3 {[%clk 0:01:59]}  Bc8 {[%clk 0:02:44]} 16. Bxc8 {[%clk 0:01:49]}  Qxc8 {[%clk 0:02:45]} 17. Rae1 {[%clk 0:01:44]}  Qf5 {[%clk 0:02:43]} 18. Qc1 {[%clk 0:01:35]}  Nd7 {[%clk 0:02:37]} 19. f3 {[%clk 0:01:23]}  Nxe5 {[%clk 0:02:26]} 20. dxe5 {[%clk 0:01:24]}  Nc6 {[%clk 0:02:25]} 21. f4 {[%clk 0:01:23]}  Qe4 {[%clk 0:02:23]} 22. Qb1 {[%clk 0:01:20]}  Rad8 {[%clk 0:02:14]} 23. Qxe4 {[%clk 0:01:18]}  dxe4 {[%clk 0:02:15]} 24. Rd1 {[%clk 0:01:19]}  Rd3 {[%clk 0:02:14]} 25. Kf2 {[%clk 0:01:19]}  Red8 {[%clk 0:02:14]} 26. Rc1 {[%clk 0:01:19]}  b5 {[%clk 0:02:12]} 27. Rfe1 {[%clk 0:01:18]}  Kf8 {[%clk 0:02:01]} 28. Re2 {[%clk 0:01:16]}  Ke7 {[%clk 0:02:01]} 29. Be1 {[%clk 0:01:12]}  Ke6 {[%clk 0:01:59]} 30. g4 {[%clk 0:01:09]}  g6 {[%clk 0:01:58]} 31. h3 {[%clk 0:01:08]}  a6 {[%clk 0:01:45]} 32. Bc3 {[%clk 0:00:59]}  R8d7 {[%clk 0:01:42]} 33. Be1 {[%clk 0:00:59]}  Ne7 {[%clk 0:01:43]} 34. a4 {[%clk 0:00:55]}  Rd1 {[%clk 0:01:40]} 35. Rxd1 {[%clk 0:00:49]}  Rxd1 {[%clk 0:01:41]} 36. axb5 {[%clk 0:00:45]}  axb5 {[%clk 0:01:42]} 37. Rd2 {[%clk 0:00:45]}  Rxd2+ {[%clk 0:01:40]} 38. Bxd2 {[%clk 0:00:46]}  Nd5 {[%clk 0:01:37]} 39. Ke2 {[%clk 0:00:45]}  b4 {[%clk 0:01:38]} 40. Bc1 {[%clk 0:00:40]}  Kd7 {[%clk 0:01:34]} 41. Kd1 {[%clk 0:00:37]}  Kc6 {[%clk 0:01:35]} 42. Kc2 {[%clk 0:00:37]}  Kb5 {[%clk 0:01:35]} 43. Bd2 {[%clk 0:00:35]}  Kc5 {[%clk 0:01:12]} 44. Bc1 {[%clk 0:00:34]}  b3+ {[%clk 0:01:06]} 45. Kd2 {[%clk 0:00:32]}  c3+ {[%clk 0:01:06]} 46. bxc3 {[%clk 0:00:31]}  Kc4 {[%clk 0:01:01]} 47. Bb2 {[%clk 0:00:29]}  Nb6 {[%clk 0:01:00]} 48. f5 {[%clk 0:00:19]}  Kd5 {[%clk 0:00:58]} 49. e6 {[%clk 0:00:16]}  Nc4+ {[%clk 0:00:42]} 50. Kc1 {[%clk 0:00:13]}  fxe6 {[%clk 0:00:43]} 51. fxg6 {[%clk 0:00:10]}  hxg6 {[%clk 0:00:43]} 52. h4 {[%clk 0:00:10]}  Ke5 {[%clk 0:00:37]} 53. Kb1 {[%clk 0:00:08]}  Kf6 {[%clk 0:00:36]} 54. Bc1 {[%clk 0:00:07]}  Ne5 {[%clk 0:00:29]} 55. h5 {[%clk 0:00:06]}  g5 {[%clk 0:00:28]} 56. Kb2 {[%clk 0:00:06]}  Nxg4 {[%clk 0:00:26]} 57. Kxb3 {[%clk 0:00:07]}  Kg7 {[%clk 0:00:23]} 58. c4 {[%clk 0:00:07]}  Nf6 {[%clk 0:00:22]} 59. Bb2 {[%clk 0:00:07]}  g4 {[%clk 0:00:21]} 60. Be5 {[%clk 0:00:07]}  Kf7 {[%clk 0:00:20]} 61. h6 {[%clk 0:00:06]}  Kg6 {[%clk 0:00:17]} 62. c5 {[%clk 0:00:05]}  Nd7 {[%clk 0:00:18]} 63. c6 {[%clk 0:00:04]}  Nc5+ {[%clk 0:00:07]} 64. Kc4 {[%clk 0:00:04]}  Nd3 {[%clk 0:00:06]} 65. Bg3 {[%clk 0:00:03]}  Nb2+ {[%clk 0:00:05]} 66. Kc5 {[%clk 0:00:04]}  Na4+ {[%clk 0:00:05]} 67. Kb5 {[%clk 0:00:04]}  Nc3+ {[%clk 0:00:05]} 68. Kc4 {[%clk 0:00:05]}  Nd5 {[%clk 0:00:06]} 69. c7 {[%clk 0:00:04]}  Nxc7 {[%clk 0:00:07]} 70. Bxc7 {[%clk 0:00:05]}  Kxh6 {[%clk 0:00:08]} 71. Bg3 {[%clk 0:00:06]}  Kg5 {[%clk 0:00:08]} 72. Kd4 {[%clk 0:00:07]}  Kf5 {[%clk 0:00:09]} 73. Bh2 {[%clk 0:00:06]}  Kg5 {[%clk 0:00:09]} 74. Kxe4 {[%clk 0:00:06]}  Kh4 {[%clk 0:00:10]} 75. Kf4 {[%clk 0:00:07]}  Kh3 {[%clk 0:00:10]} 76. Bg1 {[%clk 0:00:06]}  Kg2 {[%clk 0:00:06]} 77. Kxg4 {[%clk 0:00:06]}  Kxg1 {[%clk 0:00:06]} 78. Kf4 {[%clk 0:00:07]}  Kf2 {[%clk 0:00:07]} 79. e4 {[%clk 0:00:07]}  Ke2 {[%clk 0:00:05]} 80. e5 {[%clk 0:00:05]}  Kd3 {[%clk 0:00:04]} 81. Kg5 {[%clk 0:00:04]}  Ke4 {[%clk 0:00:05]} 82. Kf6 {[%clk 0:00:04]}  Kd5 {[%clk 0:00:05]} 83. Kg5 {[%clk 0:00:04]}  Kxe5 {[%clk 0:00:06]} 84. Kg4 {[%clk 0:00:04]}  Ke4 {[%clk 0:00:06]} 85. Kg3 {[%clk 0:00:04]}  Ke3 {[%clk 0:00:05]} 86. Kg4 {[%clk 0:00:04]}  e5 {[%clk 0:00:05]} 87. Kg3 {[%clk 0:00:05]}  e4 {[%clk 0:00:06]} 88. Kg2 {[%clk 0:00:06]}  Kd2 {[%clk 0:00:07]} 89. Kf1 {[%clk 0:00:07]}  e3 {[%clk 0:00:07]} 90. Kg2 {[%clk 0:00:01]}  e2 {[%clk 0:00:08]} 0-1


[Site "https://www.chess.com"]

[Event "Titled Tuesday Blitz August 15 Early 2023"]
[White "Bobkov, Vadim"]
[Black "Bilan, Danila"]
[WhiteFideId "34110876"]
[BlackFideId "24161918"]
[WhiteElo "2445"]
[BlackElo "2597"]
[Result "1-0"]
[Round "5"]
[TimeControl "180+1"]
[Date "2023.08.15"]
[WhiteClock "0:01:19"]
[BlackClock "0:00:00"]
[Board "94"]

1. d4 {[%clk 0:03:00]}  d5 {[%clk 0:02:56]} 2. c4 {[%clk 0:03:01]}  c6 {[%clk 0:02:55]} 3. Nc3 {[%clk 0:03:01]}  Nf6 {[%clk 0:02:54]} 4. e3 {[%clk 0:02:58]}  e6 {[%clk 0:02:52]} 5. Nf3 {[%clk 0:02:58]}  Nbd7 {[%clk 0:02:50]} 6. Be2 {[%clk 0:02:54]}  Bd6 {[%clk 0:02:27]} 7. O-O {[%clk 0:02:54]}  O-O {[%clk 0:02:26]} 8. b3 {[%clk 0:02:44]}  Ne4 {[%clk 0:02:17]} 9. Nxe4 {[%clk 0:02:30]}  dxe4 {[%clk 0:02:18]} 10. Nd2 {[%clk 0:02:30]}  f5 {[%clk 0:02:15]} 11. f3 {[%clk 0:02:27]}  exf3 {[%clk 0:01:59]} 12. Nxf3 {[%clk 0:02:25]}  e5 {[%clk 0:01:59]} 13. c5 {[%clk 0:02:25]}  Bc7 {[%clk 0:01:54]} 14. Bc4+ {[%clk 0:02:24]}  Kh8 {[%clk 0:01:53]} 15. e4 {[%clk 0:02:23]}  exd4 {[%clk 0:01:42]} 16. Ng5 {[%clk 0:02:21]}  Ne5 {[%clk 0:01:27]} 17. Qh5 {[%clk 0:02:20]}  h6 {[%clk 0:01:13]} 18. Ne6 {[%clk 0:02:16]}  Bxe6 {[%clk 0:01:00]} 19. Bxe6 {[%clk 0:02:17]}  Qe8 {[%clk 0:00:44]} 20. Qxe8 {[%clk 0:02:17]}  Raxe8 {[%clk 0:00:39]} 21. exf5 {[%clk 0:02:18]}  Nd3 {[%clk 0:00:27]} 22. Ba3 {[%clk 0:02:18]}  Bf4 {[%clk 0:00:23]} 23. g3 {[%clk 0:02:04]}  Be3+ {[%clk 0:00:22]} 24. Kg2 {[%clk 0:02:04]}  g6 {[%clk 0:00:16]} 25. Rad1 {[%clk 0:02:04]}  Nf2 {[%clk 0:00:10]} 26. Rde1 {[%clk 0:01:56]}  Ne4 {[%clk 0:00:06]} 27. Bb2 {[%clk 0:01:54]}  Kh7 {[%clk 0:00:03]} 28. fxg6+ {[%clk 0:01:53]}  Kxg6 {[%clk 0:00:04]} 29. Bd7 {[%clk 0:01:45]}  Rd8 {[%clk 0:00:04]} 30. Bg4 {[%clk 0:01:36]}  Nd2 {[%clk 0:00:04]} 31. Rxf8 {[%clk 0:01:27]}  Rxf8 {[%clk 0:00:05]} 32. Re2 {[%clk 0:01:27]}  h5 {[%clk 0:00:05]} 33. Be6 {[%clk 0:01:23]}  Nf1 {[%clk 0:00:02]} 34. Bc4 {[%clk 0:01:20]}  Nd2 {[%clk 0:00:02]} 35. Bd3+ {[%clk 0:01:21]}  Kg5 {[%clk 0:00:00]} 36. Bc1 {[%clk 0:01:19]} 1-0


[Site "https://www.chess.com"]

[Event "Titled Tuesday Blitz August 15 Early 2023"]
[White "Bazilius, Augustinas"]
[Black "HamedWafa4"]
[WhiteFideId "12832251"]
[WhiteElo "2443"]
[BlackElo "2597"]
[Result "1-0"]
[Round "5"]
[TimeControl "180+1"]
[Date "2023.08.15"]
[WhiteClock "0:00:42"]
[BlackClock "0:00:11"]
[Board "95"]

1. e4 {[%clk 0:02:53]}  e5 {[%clk 0:02:59]} 2. Nf3 {[%clk 0:02:52]}  Nc6 {[%clk 0:02:59]} 3. d4 {[%clk 0:02:52]}  exd4 {[%clk 0:02:58]} 4. Nxd4 {[%clk 0:02:53]}  Bc5 {[%clk 0:02:58]} 5. Nxc6 {[%clk 0:02:49]}  Qf6 {[%clk 0:02:55]} 6. Qf3 {[%clk 0:02:45]}  Qxf3 {[%clk 0:02:50]} 7. gxf3 {[%clk 0:02:46]}  dxc6 {[%clk 0:02:44]} 8. Be3 {[%clk 0:02:34]}  Bxe3 {[%clk 0:02:43]} 9. fxe3 {[%clk 0:02:35]}  h5 {[%clk 0:02:43]} 10. Nc3 {[%clk 0:02:31]}  h4 {[%clk 0:02:40]} 11. Rg1 {[%clk 0:02:29]}  Ne7 {[%clk 0:02:40]} 12. Rxg7 {[%clk 0:02:21]}  Be6 {[%clk 0:02:20]} 13. Ne2 {[%clk 0:02:16]}  Ng6 {[%clk 0:01:28]} 14. Nf4 {[%clk 0:02:15]}  Nxf4 {[%clk 0:01:28]} 15. exf4 {[%clk 0:02:14]}  Kf8 {[%clk 0:01:28]} 16. Rg1 {[%clk 0:02:09]}  Rd8 {[%clk 0:01:27]} 17. f5 {[%clk 0:02:04]}  Bc8 {[%clk 0:01:22]} 18. Rd1 {[%clk 0:02:01]}  Rxd1+ {[%clk 0:01:19]} 19. Kxd1 {[%clk 0:02:01]}  c5 {[%clk 0:01:16]} 20. Kd2 {[%clk 0:01:58]}  a6 {[%clk 0:01:15]} 21. Ke3 {[%clk 0:01:58]}  b5 {[%clk 0:01:14]} 22. Kf4 {[%clk 0:01:56]}  c4 {[%clk 0:01:11]} 23. e5 {[%clk 0:01:52]}  Bb7 {[%clk 0:01:10]} 24. b3 {[%clk 0:01:50]}  cxb3 {[%clk 0:01:08]} 25. cxb3 {[%clk 0:01:50]}  c5 {[%clk 0:01:08]} 26. Bd3 {[%clk 0:01:48]}  Ke7 {[%clk 0:01:04]} 27. Be4 {[%clk 0:01:44]}  Bxe4 {[%clk 0:01:02]} 28. Kxe4 {[%clk 0:01:44]}  Rd8 {[%clk 0:01:02]} 29. f4 {[%clk 0:01:41]}  Rd2 {[%clk 0:01:00]} 30. f6+ {[%clk 0:01:38]}  Kf8 {[%clk 0:00:59]} 31. f5 {[%clk 0:01:31]}  c4 {[%clk 0:00:53]} 32. e6 {[%clk 0:01:28]}  fxe6 {[%clk 0:00:52]} 33. fxe6 {[%clk 0:01:27]}  c3 {[%clk 0:00:51]} 34. Rg7 {[%clk 0:01:17]}  Re2+ {[%clk 0:00:41]} 35. Kf5 {[%clk 0:01:13]}  c2 {[%clk 0:00:41]} 36. Rc7 {[%clk 0:01:05]}  Kg8 {[%clk 0:00:31]} 37. f7+ {[%clk 0:00:55]}  Kg7 {[%clk 0:00:28]} 38. Rc8 {[%clk 0:00:56]}  Rf2+ {[%clk 0:00:28]} 39. Ke5 {[%clk 0:00:52]}  h3 {[%clk 0:00:24]} 40. Kd6 {[%clk 0:00:46]}  b4 {[%clk 0:00:18]} 41. Ke7 {[%clk 0:00:45]}  Kg6 {[%clk 0:00:11]} 42. f8=Q {[%clk 0:00:42]} 1-0


[Site "https://www.chess.com"]

[Event "Titled Tuesday Blitz August 15 Early 2023"]
[White "Herman, Daniel"]
[Black "Budrewicz, Krzysztof"]
[WhiteFideId "30935008"]
[BlackFideId "1127950"]
[WhiteElo "2438"]
[BlackElo "2597"]
[Result "0-1"]
[Round "5"]
[TimeControl "180+1"]
[Date "2023.08.15"]
[WhiteClock "0:00:14"]
[BlackClock "0:01:12"]
[Board "96"]

1. d4 {[%clk 0:03:00]}  Nf6 {[%clk 0:02:55]} 2. c4 {[%clk 0:03:00]}  g6 {[%clk 0:02:55]} 3. Nc3 {[%clk 0:03:01]}  Bg7 {[%clk 0:02:55]} 4. e4 {[%clk 0:02:57]}  O-O {[%clk 0:02:55]} 5. h3 {[%clk 0:02:54]}  d6 {[%clk 0:02:55]} 6. Nf3 {[%clk 0:02:54]}  e5 {[%clk 0:02:54]} 7. d5 {[%clk 0:02:52]}  Nbd7 {[%clk 0:02:53]} 8. Be3 {[%clk 0:02:46]}  Nc5 {[%clk 0:02:53]} 9. Nd2 {[%clk 0:02:46]}  a5 {[%clk 0:02:53]} 10. g4 {[%clk 0:02:43]}  a4 {[%clk 0:02:48]} 11. Qf3 {[%clk 0:02:31]}  Ne8 {[%clk 0:02:44]} 12. O-O-O {[%clk 0:02:24]}  f5 {[%clk 0:02:39]} 13. gxf5 {[%clk 0:02:23]}  gxf5 {[%clk 0:02:39]} 14. Rg1 {[%clk 0:02:13]}  f4 {[%clk 0:02:37]} 15. Bxc5 {[%clk 0:02:10]}  dxc5 {[%clk 0:02:37]} 16. Qh5 {[%clk 0:01:55]}  Bd7 {[%clk 0:02:31]} 17. Nf3 {[%clk 0:01:38]}  Qe7 {[%clk 0:02:22]} 18. Qxe5 {[%clk 0:01:34]}  Qxe5 {[%clk 0:02:18]} 19. Nxe5 {[%clk 0:01:35]}  Bc8 {[%clk 0:02:16]} 20. Nd3 {[%clk 0:01:21]}  Nd6 {[%clk 0:02:11]} 21. Nxc5 {[%clk 0:01:16]}  a3 {[%clk 0:02:09]} 22. b3 {[%clk 0:01:12]}  b6 {[%clk 0:02:10]} 23. Nd3 {[%clk 0:00:42]}  Kh8 {[%clk 0:02:09]} 24. e5 {[%clk 0:00:42]}  Nf7 {[%clk 0:02:05]} 25. Re1 {[%clk 0:00:35]}  Bf5 {[%clk 0:02:05]} 26. Nb5 {[%clk 0:00:31]}  Bxd3 {[%clk 0:02:03]} 27. Bxd3 {[%clk 0:00:32]}  Nxe5 {[%clk 0:02:03]} 28. Be4 {[%clk 0:00:27]}  Rac8 {[%clk 0:02:00]} 29. Kb1 {[%clk 0:00:22]}  Rf7 {[%clk 0:01:52]} 30. Nxa3 {[%clk 0:00:22]}  Re8 {[%clk 0:01:47]} 31. Nb5 {[%clk 0:00:21]}  Rfe7 {[%clk 0:01:47]} 32. Bc2 {[%clk 0:00:20]}  Nf3 {[%clk 0:01:39]} 33. Rxe7 {[%clk 0:00:20]}  Rxe7 {[%clk 0:01:40]} 34. Rd1 {[%clk 0:00:20]}  Be5 {[%clk 0:01:33]} 35. Be4 {[%clk 0:00:19]}  Ng5 {[%clk 0:01:33]} 36. Bc2 {[%clk 0:00:19]}  Nxh3 {[%clk 0:01:33]} 37. b4 {[%clk 0:00:19]}  Nxf2 {[%clk 0:01:33]} 38. Rf1 {[%clk 0:00:19]}  Ng4 {[%clk 0:01:32]} 39. c5 {[%clk 0:00:19]}  Ne3 {[%clk 0:01:29]} 40. Re1 {[%clk 0:00:18]}  Nxd5 {[%clk 0:01:26]} 41. a3 {[%clk 0:00:17]}  bxc5 {[%clk 0:01:25]} 42. bxc5 {[%clk 0:00:17]}  f3 {[%clk 0:01:25]} 43. Be4 {[%clk 0:00:16]}  f2 {[%clk 0:01:23]} 44. Rf1 {[%clk 0:00:17]}  Bg3 {[%clk 0:01:13]} 45. Bxd5 {[%clk 0:00:13]}  Re1+ {[%clk 0:01:13]} 46. Kc2 {[%clk 0:00:14]}  Rxf1 {[%clk 0:01:14]} 47. Bc4 {[%clk 0:00:15]}  Ra1 {[%clk 0:01:10]} 48. Kb2 {[%clk 0:00:13]}  f1=Q {[%clk 0:01:10]} 49. Bxf1 {[%clk 0:00:14]}  Rxf1 {[%clk 0:01:10]} 50. a4 {[%clk 0:00:15]}  Bf2 {[%clk 0:01:11]} 51. c6 {[%clk 0:00:14]}  Bb6 {[%clk 0:01:10]} 52. Kb3 {[%clk 0:00:14]}  Rf4 {[%clk 0:01:10]} 53. Na3 {[%clk 0:00:13]}  h5 {[%clk 0:01:09]} 54. Nc4 {[%clk 0:00:13]}  Rxc4 {[%clk 0:01:09]} 55. Kxc4 {[%clk 0:00:13]}  h4 {[%clk 0:01:09]} 56. Kb5 {[%clk 0:00:13]}  h3 {[%clk 0:01:10]} 57. a5 {[%clk 0:00:14]}  Bxa5 {[%clk 0:01:10]} 58. Kxa5 {[%clk 0:00:14]}  h2 {[%clk 0:01:11]} 59. Ka6 {[%clk 0:00:15]}  h1=Q {[%clk 0:01:12]} 60. Kb7 {[%clk 0:00:16]}  Qh2 {[%clk 0:01:11]} 61. Kc8 {[%clk 0:00:15]}  Qd6 {[%clk 0:01:12]} 62. Kb7 {[%clk 0:00:14]}  Kg7 {[%clk 0:01:12]} 0-1


[Site "https://www.chess.com"]

[Event "Titled Tuesday Blitz August 15 Early 2023"]
[White "Manukyan, Sargis A."]
[Black "Batsiashvili, Nino"]
[WhiteFideId "13303970"]
[BlackFideId "13602993"]
[WhiteElo "2594"]
[BlackElo "2434"]
[Result "1-0"]
[Round "5"]
[TimeControl "180+1"]
[Date "2023.08.15"]
[WhiteClock "0:00:45"]
[BlackClock "0:00:00"]
[Board "98"]

1. d4 {[%clk 0:03:00]}  d5 {[%clk 0:02:58]} 2. c4 {[%clk 0:03:00]}  e6 {[%clk 0:02:59]} 3. Nc3 {[%clk 0:03:01]}  Nf6 {[%clk 0:02:59]} 4. Nf3 {[%clk 0:02:59]}  Nbd7 {[%clk 0:02:58]} 5. Bg5 {[%clk 0:02:58]}  Bb4 {[%clk 0:02:55]} 6. e3 {[%clk 0:02:56]}  O-O {[%clk 0:02:53]} 7. cxd5 {[%clk 0:02:55]}  exd5 {[%clk 0:02:53]} 8. Bd3 {[%clk 0:02:55]}  c5 {[%clk 0:02:53]} 9. O-O {[%clk 0:02:53]}  c4 {[%clk 0:02:53]} 10. Bc2 {[%clk 0:02:53]}  Qa5 {[%clk 0:02:52]} 11. Ne2 {[%clk 0:02:45]}  Ne4 {[%clk 0:02:41]} 12. Bf4 {[%clk 0:02:44]}  Re8 {[%clk 0:02:33]} 13. Ng3 {[%clk 0:02:34]}  b5 {[%clk 0:02:28]} 14. a4 {[%clk 0:02:32]}  Bf8 {[%clk 0:02:17]} 15. axb5 {[%clk 0:02:27]}  Qxb5 {[%clk 0:02:17]} 16. Ba4 {[%clk 0:02:27]}  Qxb2 {[%clk 0:02:15]} 17. Bc6 {[%clk 0:02:24]}  Rb8 {[%clk 0:02:02]} 18. Bxb8 {[%clk 0:02:20]}  Qxb8 {[%clk 0:02:03]} 19. Nxe4 {[%clk 0:02:19]}  dxe4 {[%clk 0:02:02]} 20. Ne5 {[%clk 0:02:19]}  Nxe5 {[%clk 0:01:40]} 21. Bxe8 {[%clk 0:02:17]}  Ng4 {[%clk 0:01:13]} 22. g3 {[%clk 0:02:10]}  Nf6 {[%clk 0:01:10]} 23. Ba4 {[%clk 0:01:55]}  Bg4 {[%clk 0:01:10]} 24. Qc1 {[%clk 0:01:49]}  Qc8 {[%clk 0:01:08]} 25. Bd1 {[%clk 0:01:46]}  Bf3 {[%clk 0:01:07]} 26. Bxf3 {[%clk 0:01:36]}  exf3 {[%clk 0:01:08]} 27. Qd1 {[%clk 0:01:36]}  Qg4 {[%clk 0:00:42]} 28. h3 {[%clk 0:01:34]}  Qf5 {[%clk 0:00:35]} 29. Rxa7 {[%clk 0:01:27]}  h5 {[%clk 0:00:29]} 30. Ra6 {[%clk 0:01:09]}  c3 {[%clk 0:00:23]} 31. Rxf6 {[%clk 0:01:01]}  gxf6 {[%clk 0:00:21]} 32. Kh2 {[%clk 0:01:02]}  Bd6 {[%clk 0:00:20]} 33. Qb3 {[%clk 0:00:54]}  h4 {[%clk 0:00:18]} 34. Qxc3 {[%clk 0:00:47]}  hxg3+ {[%clk 0:00:12]} 35. fxg3 {[%clk 0:00:48]}  f2 {[%clk 0:00:00]} 36. Qd2 {[%clk 0:00:45]} 1-0


[Site "https://www.chess.com"]

[Event "Titled Tuesday Blitz August 15 Early 2023"]
[White "Rozhkov, Viacheslav"]
[Black "Onufrienko, Vladislav"]
[WhiteFideId "4181484"]
[BlackFideId "13804332"]
[WhiteElo "2419"]
[BlackElo "2571"]
[Result "0-1"]
[Round "5"]
[TimeControl "180+1"]
[Date "2023.08.15"]
[WhiteClock "0:00:00"]
[BlackClock "0:00:09"]
[Board "104"]

1. e4 {[%clk 0:03:00]}  Nf6 {[%clk 0:03:00]} 2. e5 {[%clk 0:03:00]}  Nd5 {[%clk 0:03:01]} 3. d4 {[%clk 0:03:00]}  d6 {[%clk 0:03:01]} 4. Nf3 {[%clk 0:03:00]}  dxe5 {[%clk 0:03:01]} 5. Nxe5 {[%clk 0:03:01]}  Nd7 {[%clk 0:03:02]} 6. Nxd7 {[%clk 0:02:58]}  Bxd7 {[%clk 0:03:02]} 7. Bd3 {[%clk 0:02:58]}  Bc6 {[%clk 0:02:51]} 8. O-O {[%clk 0:02:57]}  Nb4 {[%clk 0:02:50]} 9. Bc4 {[%clk 0:02:48]}  e6 {[%clk 0:02:46]} 10. a3 {[%clk 0:02:46]}  Nd5 {[%clk 0:02:46]} 11. Bd3 {[%clk 0:02:34]}  Be7 {[%clk 0:02:46]} 12. c4 {[%clk 0:02:29]}  Nf6 {[%clk 0:02:46]} 13. Be3 {[%clk 0:02:27]}  O-O {[%clk 0:02:44]} 14. Nc3 {[%clk 0:02:27]}  a6 {[%clk 0:02:42]} 15. Qe2 {[%clk 0:02:25]}  Re8 {[%clk 0:02:42]} 16. Rad1 {[%clk 0:02:24]}  Qc8 {[%clk 0:02:38]} 17. b4 {[%clk 0:02:20]}  b6 {[%clk 0:02:37]} 18. h3 {[%clk 0:02:16]}  Qb7 {[%clk 0:02:37]} 19. f3 {[%clk 0:02:09]}  Rad8 {[%clk 0:02:33]} 20. Ne4 {[%clk 0:02:07]}  Nxe4 {[%clk 0:02:27]} 21. fxe4 {[%clk 0:01:51]}  Bxe4 {[%clk 0:02:28]} 22. Bxe4 {[%clk 0:01:50]}  Qxe4 {[%clk 0:02:29]} 23. Rf4 {[%clk 0:01:50]}  Qc6 {[%clk 0:02:09]} 24. Rdf1 {[%clk 0:01:45]}  f6 {[%clk 0:02:00]} 25. Qh5 {[%clk 0:01:33]}  f5 {[%clk 0:00:59]} 26. d5 {[%clk 0:01:26]}  exd5 {[%clk 0:00:59]} 27. Rxf5 {[%clk 0:01:11]}  g6 {[%clk 0:00:45]} 28. Qg4 {[%clk 0:01:11]}  Qd7 {[%clk 0:00:38]} 29. cxd5 {[%clk 0:00:30]}  Rf8 {[%clk 0:00:33]} 30. Rxf8+ {[%clk 0:00:29]}  Bxf8 {[%clk 0:00:33]} 31. Qc4 {[%clk 0:00:13]}  Bd6 {[%clk 0:00:24]} 32. Bg5 {[%clk 0:00:10]}  Re8 {[%clk 0:00:19]} 33. Bh6 {[%clk 0:00:08]}  Qe7 {[%clk 0:00:17]} 34. Qd4 {[%clk 0:00:06]}  Qe5 {[%clk 0:00:14]} 35. Qxe5 {[%clk 0:00:06]}  Bxe5 {[%clk 0:00:15]} 36. Rd1 {[%clk 0:00:05]}  Bd6 {[%clk 0:00:14]} 37. Kf1 {[%clk 0:00:03]}  Re5 {[%clk 0:00:13]} 38. Rd2 {[%clk 0:00:02]}  Rf5+ {[%clk 0:00:11]} 39. Kg1 {[%clk 0:00:02]}  g5 {[%clk 0:00:11]} 40. h4 {[%clk 0:00:01]}  gxh4 {[%clk 0:00:11]} 41. Be3 {[%clk 0:00:01]}  Kf7 {[%clk 0:00:10]} 42. Rf2 {[%clk 0:00:00]}  Kg6 {[%clk 0:00:09]} 0-1


[Site "https://www.chess.com"]

[Event "Titled Tuesday Blitz August 15 Early 2023"]
[White "Trifan, Andrei Ioan"]
[Black "Li, Eric"]
[WhiteFideId "12967068"]
[BlackFideId "30939941"]
[WhiteElo "2568"]
[BlackElo "2419"]
[Result "1-0"]
[Round "5"]
[TimeControl "180+1"]
[Date "2023.08.15"]
[WhiteClock "0:00:25"]
[BlackClock "0:00:06"]
[Board "105"]

1. e4 {[%clk 0:02:59]}  c5 {[%clk 0:02:55]} 2. Nf3 {[%clk 0:02:50]}  d6 {[%clk 0:02:54]} 3. d4 {[%clk 0:02:47]}  cxd4 {[%clk 0:02:55]} 4. Nxd4 {[%clk 0:02:47]}  Nf6 {[%clk 0:02:56]} 5. Nc3 {[%clk 0:02:47]}  a6 {[%clk 0:02:52]} 6. Be2 {[%clk 0:02:46]}  e5 {[%clk 0:02:48]} 7. Nb3 {[%clk 0:02:45]}  Be7 {[%clk 0:02:48]} 8. O-O {[%clk 0:02:44]}  O-O {[%clk 0:02:48]} 9. a4 {[%clk 0:02:42]}  Nc6 {[%clk 0:02:41]} 10. Be3 {[%clk 0:02:38]}  Be6 {[%clk 0:02:37]} 11. Qd3 {[%clk 0:02:21]}  Na5 {[%clk 0:02:25]} 12. Nxa5 {[%clk 0:02:14]}  Qxa5 {[%clk 0:02:26]} 13. Bf3 {[%clk 0:02:03]}  Rac8 {[%clk 0:02:19]} 14. Nd5 {[%clk 0:02:03]}  Bxd5 {[%clk 0:02:07]} 15. exd5 {[%clk 0:02:04]}  Qb4 {[%clk 0:02:07]} 16. Rfb1 {[%clk 0:01:49]}  e4 {[%clk 0:02:06]} 17. c3 {[%clk 0:01:48]}  exd3 {[%clk 0:01:36]} 18. cxb4 {[%clk 0:01:49]}  Rc4 {[%clk 0:01:34]} 19. Bd2 {[%clk 0:01:46]}  Ne4 {[%clk 0:01:22]} 20. Bxe4 {[%clk 0:01:35]}  Rxe4 {[%clk 0:01:23]} 21. Re1 {[%clk 0:01:32]}  Rxe1+ {[%clk 0:01:03]} 22. Rxe1 {[%clk 0:01:33]}  Bf6 {[%clk 0:01:04]} 23. Re3 {[%clk 0:01:29]}  Bxb2 {[%clk 0:00:59]} 24. Rxd3 {[%clk 0:01:29]}  Rc8 {[%clk 0:00:58]} 25. g3 {[%clk 0:01:24]}  h5 {[%clk 0:00:53]} 26. Bf4 {[%clk 0:01:19]}  Be5 {[%clk 0:00:49]} 27. Bxe5 {[%clk 0:01:12]}  dxe5 {[%clk 0:00:50]} 28. Kg2 {[%clk 0:01:06]}  f6 {[%clk 0:00:34]} 29. d6 {[%clk 0:00:57]}  Kf7 {[%clk 0:00:34]} 30. d7 {[%clk 0:00:52]}  Rd8 {[%clk 0:00:34]} 31. f4 {[%clk 0:00:50]}  exf4 {[%clk 0:00:30]} 32. gxf4 {[%clk 0:00:51]}  Ke7 {[%clk 0:00:30]} 33. Rg3 {[%clk 0:00:49]}  Kf7 {[%clk 0:00:21]} 34. Rd3 {[%clk 0:00:48]}  Ke6 {[%clk 0:00:18]} 35. Kh3 {[%clk 0:00:33]}  Rxd7 {[%clk 0:00:18]} 36. f5+ {[%clk 0:00:30]}  Ke7 {[%clk 0:00:18]} 37. Rxd7+ {[%clk 0:00:31]}  Kxd7 {[%clk 0:00:19]} 38. Kh4 {[%clk 0:00:32]}  Ke7 {[%clk 0:00:16]} 39. Kxh5 {[%clk 0:00:32]}  Kf7 {[%clk 0:00:12]} 40. a5 {[%clk 0:00:30]}  Kf8 {[%clk 0:00:03]} 41. Kg6 {[%clk 0:00:30]}  Kg8 {[%clk 0:00:04]} 42. h4 {[%clk 0:00:28]}  Kf8 {[%clk 0:00:05]} 43. h5 {[%clk 0:00:25]}  Kg8 {[%clk 0:00:06]} 44. h6 {[%clk 0:00:25]}  gxh6 {[%clk 0:00:07]} 45. Kxh6 {[%clk 0:00:24]}  Kf8 {[%clk 0:00:05]} 46. Kg6 {[%clk 0:00:25]}  Ke7 {[%clk 0:00:06]} 47. Kg7 {[%clk 0:00:25]} 1-0


[Site "https://www.chess.com"]